Cogmind - Beta 17.1 @@@ ROGUE MODE // 2026.09.09 @ 10:08:05 Player: Avari3l Result: Destroyed by as-75673 with Assembled Rifle Performance ------------- Evolutions (0) 0 Regions Visited (4) 800 Robots Destroyed (22) 110 Value Destroyed (606) 606 Prototype IDs (23) 460 Alien Tech Used (0) 0 Bonus (300) 300 TOTAL SCORE: 2276 Bonus ------- Aligned with FarCom 300 Cogmind --------- Core Integrity 0/250 Matter 209/300 Energy 211/250 System Corruption 16% Temperature Cool (0) Movement Treading (240) Ox1 Location -9/Mines Parts ------- > --- POWER (1) -------- Ion Engine > --- PROPULSION (2) --- Light Treads > --- UTILITY (2) ------ Improved Heat Sink Large Storage Unit > --- WEAPON (2) ------- Medium Laser > --- INVENTORY (15) --- Light Treads Light Treads Light Treads Large Storage Unit Cloak of Protection Light Armor Plating Light Armor Plating Grenade Launcher Rocket Launcher Mining Laser Peak State ------------ > --- POWER ------------ Light Nuclear Core > --- PROPULSION ------- Light Treads Light Treads > --- UTILITY ---------- Large Storage Unit Improved Terrain Scanner > --- WEAPON ----------- EM Shotgun Light Assault Rifle > --- INVENTORY -------- Ion Engine Light Treads Light Treads Light Treads Improved Heat Sink Cloak of Protection Light Armor Plating Light Armor Plating Medium Laser Grenade Launcher Mining Laser [Rating: 14] Favorites ----------- Power Light Nuclear Core Engine Light Ion Engine Power Core Light Nuclear Core Propulsion Light Treads Treads Light Treads Utility Large Storage Unit Device Seismic Detector Storage Large Storage Unit Protection Light Armor Plating Weapon Medium Laser Energy Gun Medium Laser Ballistic Gun Light Assault Rifle Launcher Rocket Launcher Special Weapon Mining Laser Build | -11 -10 -10 -10 -9 ------- Run | Yrd Mat Min Exi Min Slots Evolved . | . . . . . Power . | . . . . . Propulsion . | . . . . . Utility . | . . . . . Weapon . | . . . . . Parts Attached 24 | 7 8 5 . 4 Power 5 | 1 1 1 . 2 Engine 3 | 1 . . . 2 Core 2 | . 1 1 . . Reactor . | . . . . . Propulsion 6 | 2 3 . . 1 Treads 6 | 2 3 . . 1 Leg . | . . . . . Wheel . | . . . . . Hover . | . . . . . Flight . | . . . . . Utility 6 | 2 1 3 . . Device 3 | 1 . 2 . . Storage 2 | 1 1 . . . Processor . | . . . . . Hackware . | . . . . . Protection 1 | . . 1 . . Artifact . | . . . . . Weapon 7 | 2 3 1 . 1 Energy Gun 4 | 2 1 1 . . Energy Cannon . | . . . . . Ballistic Gun 1 | . 1 . . . Ballistic Cannon . | . . . . . Launcher 1 | . . . . 1 Special Weapon 1 | . 1 . . . Impact Weapon . | . . . . . Slashing Weapon . | . . . . . Piercing Weapon . | . . . . . Special Melee Weapon . | . . . . . Unidentified Prototypes . | . . . . . Parts Lost 11 | . 1 4 . 6 Power 3 | . 1 1 . 1 Propulsion 3 | . . 1 . 2 Utility 2 | . . 1 . 1 Weapon 3 | . . 1 . 2 Highest Loss Streak 3 | . 1 2 . 3 To Critical Strikes . | . . . . . Average Backups 9 | . 8 10 10 12 Power . | . . 1 1 . Propulsion 2 | . 2 3 3 3 Utility 2 | . 2 2 3 4 Weapon 2 | . 3 2 3 3 Tool/Special . | . . . . . Unused Backups 10 | . 4 . . 6 Power . | . . . . . Propulsion 2 | . . . . 2 Utility 4 | . 1 . . 3 Weapon 4 | . 3 . . 1 Tool/Special . | . . . . . Average Slot Usage (%) 99 | . 99 100 100 96 Engine 1 | . 2 . . 5 Core 11 | . 10 14 14 8 Treads 28 | . 28 28 28 28 Device 13 | . 14 12 14 10 Storage 14 | . 14 14 14 14 Energy Gun 16 | . 17 15 14 16 Ballistic Gun 9 | . 7 11 14 8 Special Weapon 1 | . 2 1 . . Peak Build Rating 14 | 7 11 13 14 14 Average Rating 10 | 5 9 10 13 12 On Entrance 9 | . 7 11 13 14 Avg Prop Armor Cover (%) 8 | . . 8 . . Naked Turns . | . . . . . Heaviest Build 35 | 13 31 33 30 35 Greatest Support 40 | 40 40 40 40 40 Greatest Overweight (x) 1 | . . 1 . . Average Overweight (x) . | . . . . . Largest Inventory Capacity 15 | 8 15 15 15 15 Average Capacity 13 | 7 10 15 15 15 Most Carried 14 | 2 12 12 12 14 Average Carried 9 | . 8 10 10 12 Final Capacity 15 | 8 15 15 15 15 Final Carried 12 | 2 12 10 12 10 Class Distribution -------------------- 94% | Mutant 5% | Skirmisher Dominant Class ---------------- Mutant | -10/Materials Mutant | -10/Mines Mutant | -10/Exiles Skirmisher | -9/Mines Resources | -11 -10 -10 -10 -9 ----------- Run | Yrd Mat Min Exi Min Matter Collected 796 | 197 171 216 . 212 Remotely . | . . . . . Salvage Created 896 | 14 411 353 . 118 Parts 39 | 3 18 18 . . Haulers Intercepted . | . . . . . Recyclers Shooed 1 | . . 1 . . Parts Field Recycled . | . . . . . Retrieved Matter . | . . . . . Parts Self-Destructed . | . . . . . Prevented . | . . . . . Parts Restored . | . . . . . Kills | -11 -10 -10 -10 -9 ------- Run | Yrd Mat Min Exi Min Combat Hostiles Destroyed 37 | . 10 13 . 14 Guns 28 | . 9 13 . 6 AOE 8 | . . . . 8 Classes Destroyed 5 | 1 3 1 . . Tunneler 1 | 1 . . . . Watcher 2 | . 2 . . . Swarmer 6 | . 3 3 . . Grunt 13 | . 7 6 . . Assembled 18 | . . 4 . 14 Best Kill Streak 10 | 1 3 3 . 10 Combat Bots Only 10 | . 3 3 . 10 Max Kills in Single Turn 2 | 1 1 1 . 2 Gunslinging . | . . . . . Exploded 2 | . . . . 2 Melee . | . . . . . Uniques/NPCs Destroyed . | . . . . . Combat | -11 -10 -10 -10 -9 -------- Run | Yrd Mat Min Exi Min Hostile Shots Fired 170 | . 54 70 . 46 Missed 50 | . 19 15 . 16 Hits 120 | . 35 55 . 30 Melee 14 | . . 4 . 10 Projectile 106 | . 35 51 . 20 Critical Strikes 3 | . 1 2 . . Part Disruptions 2 | . . 2 . . Damage Taken 1710 | . 416 658 . 636 Core 254 | . 51 88 . 115 Absorbed by Shields . | . . . . . Core Remaining (%) 100 | 100 . . . . Volleys Fired 136 | 1 46 48 . 41 Largest 2 | 2 2 2 . 2 Hottest 150 | 100 100 150 . 95 Shots Fired 241 | 2 86 89 1 63 Gun 210 | 2 81 77 1 49 Cannon . | . . . . . Launcher 14 | . . . . 14 Special 17 | . 5 12 . . Kinetic 66 | . 32 27 . 7 Thermal 113 | 2 47 43 . 21 Explosive 14 | . . . . 14 Electromagnetic 48 | . 7 19 1 21 Robot Hit Streak 12 | 1 12 10 . 7 Robot Miss Streak 5 | . 3 5 . 4 Penetration Max . | . . . . . Secondary Targets 3 | . 1 1 . 1 Max Gunslinging Chain 1 | . 1 1 . 1 Shots Hit Robots 136 | 1 62 47 . 26 Core Hits 91 | 1 24 31 . 35 Critical Kills . | . . . . . Critical Parts Destroyed . | . . . . . Critical Strikes 3 | . 3 . . . Burn 3 | . 3 . . . Melee Attacks . | . . . . . Impact . | . . . . . Slashing . | . . . . . Piercing . | . . . . . Sneak Attacks . | . . . . . Combat Hostiles . | . . . . . Follow-up Attacks . | . . . . . Damage Inflicted 2130 | 16 679 647 . 788 Guns 1557 | 13 679 602 . 263 Cannons . | . . . . . Explosions 567 | . . 42 . 525 Melee . | . . . . . Ramming 6 | 3 . 3 . . Kinetic 323 | . 181 126 . 16 Thermal 772 | 13 428 270 . 61 Explosive 525 | . . . . 525 Electromagnetic 504 | . 70 248 . 186 Impact . | . . . . . Slashing . | . . . . . Piercing . | . . . . . Highest Corruption 16 | . 1 7 7 16 Average Corruption 5 | . 1 4 7 10 Corruption Purged . | . . . . . Corruption Blocked . | . . . . . Effects 47 | . 3 17 10 17 Message Errors 12 | . 1 6 3 2 Matter Fused 9 | . . 3 1 5 Heat Flow Errors 6 | . . 3 2 1 Energy Discharges 3 | . . 2 . 1 Parts Rejected 1 | . . 1 . . Parts Fused 1 | . 1 . . . Data Loss (minor) 6 | . 1 1 1 3 Misfires 4 | . . 1 1 2 Alerts 2 | . . . 2 . Weapon Failures 3 | . . . . 3 Overload Shots . | . . . . . Overflow Damage . | . . . . . Projectiles . | . . . . . Explosions . | . . . . . Melee . | . . . . . Knockbacks 1 | 1 . . . . Impact 1 | 1 . . . . Kinetic . | . . . . . Secondary . | . . . . . Self-Inflicted Damage 74 | . . . . 74 Shots 2 | . . . . 2 Rammed 3 | 1 1 1 . . Targets Rammed 3 | 1 1 1 . . Kicked . | . . . . . Crushed . | . . . . . Highest Temperature 450 | 39 258 398 158 450 Average Temperature 118 | 20 74 139 62 172 Received Heat Transfer 451 | . 210 201 . 40 Effects 4 | . . 2 . 2 Shutdowns 1 | . . . . 1 Interference 1 | . . 1 . . Matter Decay 2 | . . 1 . 1 Siege Activations . | . . . . . Martial Activations . | . . . . . Shielding Activations . | . . . . . Robots Disrupted . | . . . . . Combat Hostiles . | . . . . . Robots Corrupted . | . . . . . Combat Hostiles . | . . . . . Parts Fried . | . . . . . Impact Corruptions . | . . . . . Robots Melted 1 | . 1 . . . Combat Hostiles 1 | . 1 . . . Parts Melted 4 | . 2 2 . . Heat Transferred 2418 | 37 1480 716 . 185 Parts Sabotaged . | . . . . . Parts Stolen . | . . . . . Parts Stripped . | . . . . . Power Chain Reactions 1 | . . 1 . . Alert | -11 -10 -10 -10 -9 ------- Run | Yrd Mat Min Exi Min Maximum Alert Level . | . . . . . Low Security (%) 100 | 100 100 100 . 100 Level 1 . | . . . . . Level 2 . | . . . . . Level 3 . | . . . . . Level 4 . | . . . . . Level 5 . | . . . . . High Security . | . . . . . Max Security . | . . . . . Peak Influence 110 | 5 110 62 . 25 Initial 8 | . . 8 . . Average 17 | . 25 14 . 1 Influence Increases 589 | 5 300 234 . 50 Destroy 0b10 Robot/C 380 | . 200 180 . . Destroy 0b10 Robot/NC 15 | 5 10 . . . Destroy Leader 84 | . 54 30 . . Successful Hack 32 | . 32 . . . Destroy Structure 63 | . 4 9 . 50 Lose Combat Pursuer 15 | . . 15 . . Influence Decreases 589 | 5 278 256 . 50 Entered New Map 14 | . . 14 . . Time Decay 525 | 5 268 232 . 20 Lost Part 50 | . 10 10 . 30 Squads Dispatched 1 | . 1 . . . Investigation . | . . . . . Extermination . | . . . . . Reinforcement 1 | . 1 . . . Assault . | . . . . . Garrison . | . . . . . Intercept . | . . . . . Searches Triggered . | . . . . . Construction Impeded . | . . . . . Haulers Reinforced . | . . . . . Active Scanning Responses . | . . . . . Cargo Convoy Interrupts . | . . . . . Stealth | -11 -10 -10 -10 -9 --------- Run | Yrd Mat Min Exi Min Distress Signals 2 | . 2 . . . Communications Jammed . | . . . . . Distress Signals . | . . . . . Times Spotted 52 | . 17 18 . 17 Peak Tracking Total 6 | . 4 4 . 6 Tactical Retreats 2 | . . 2 . . Traps | -11 -10 -10 -10 -9 ------- Run | Yrd Mat Min Exi Min Traps Triggered 1 | . 1 . . . Indirectly . | . . . . . Trap Hack Attempts . | . . . . . Triggered . | . . . . . Disarmed . | . . . . . Reprogrammed . | . . . . . Reused . | . . . . . Traps Extracted . | . . . . . Installed . | . . . . . Triggered . | . . . . . Machines | -11 -10 -10 -10 -9 ---------- Run | Yrd Mat Min Exi Min Machines Disabled . | . . . . . Max in Single Turn . | . . . . . Machines Repaired . | . . . . . Machines Dismantled . | . . . . . Machines Sabotaged . | . . . . . Overloaded Fab Kills . | . . . . . Hacking | -11 -10 -10 -10 -9 --------- Run | Yrd Mat Min Exi Min Machines Accessed 8 | . 7 . 1 . Terminals 6 | . 6 . . . Fabricators . | . . . . . Repair Stations . | . . . . . Recycling Units 1 | . 1 . . . Scanalyzers . | . . . . . Garrison Access . | . . . . . Total Hacks 20 | . 19 . 1 . Successful 8 | . 7 . 1 . Failed 12 | . 12 . . . Catastrophic 2 | . 2 . . . Database Lockouts . | . . . . . Manual 6 | . 5 . 1 . Terminals 18 | . 18 . . . Fabricators . | . . . . . Repair Stations . | . . . . . Recycling Units 1 | . 1 . . . Scanalyzers . | . . . . . Garrison Access . | . . . . . Terminal Hacks 6 | . 5 . 1 . Record 1 | . 1 . . . Robot Analysis 1 | . 1 . . . Locate Traps 2 | . 2 . . . Hauler Manifests 1 | . 1 . . . Proto ID Catalog 1 | . . . 1 . Fabricator Hacks . | . . . . . Repair Station Hacks . | . . . . . Recycling Unit Hacks 1 | . 1 . . . Report Inventory 1 | . 1 . . . Scanalyzer . | . . . . . Garrison Access Hacks . | . . . . . Unauthorized Hacks 1 | . 1 . . . Terminals 1 | . 1 . . . Botnet 1 | . 1 . . . Fabricators . | . . . . . Repair Stations . | . . . . . Recycling Units . | . . . . . Scanalyzers . | . . . . . Garrison Access . | . . . . . Data Cores Recovered . | . . . . . Used . | . . . . . Hacking Detections 6 | . 6 . . . Full Trace Events . | . . . . . Feedback Events . | . . . . . Feedback Blocked . | . . . . . Robot Schematics Acquired . | . . . . . Robots Built . | . . . . . Authchips . | . . . . . Time . | . . . . . Total Robot Build Rating . | . . . . . Part Schematics Acquired . | . . . . . Parts Built . | . . . . . Authchips . | . . . . . Time . | . . . . . Total Part Build Rating . | . . . . . Part Studies Acquired . | . . . . . Parts Repaired . | . . . . . Time . | . . . . . Parts Recycled . | . . . . . Recycled Matter . | . . . . . Retrieved Matter . | . . . . . Retrieved Components . | . . . . . Parts Scanalyzed . | . . . . . Part Schematics Acquired . | . . . . . Parts Damaged . | . . . . . Bothacking | -11 -10 -10 -10 -9 ------------ Run | Yrd Mat Min Exi Min Used RIF Installer . | . . . . . Robots Hacked . | . . . . . Non-combat . | . . . . . Combat . | . . . . . Robot Hacks Applied . | . . . . . Relay Couplers Released . | . . . . . Fabnet Peak Effective % . | . . . . . Robots Rewired . | . . . . . Allies Hacked . | . . . . . Hacks Repelled . | . . . . . Allies | -11 -10 -10 -10 -9 -------- Run | Yrd Mat Min Exi Min Total Allies 2 | . . . . 2 Largest Group 1 | . . . . 1 Highest-Rated Group 31 | . . . . 31 Highest-Rated Ally 31 | . . . . 31 Total Orders . | . . . . . Ally Attacks 2 | . . . . 2 Total Damage 21 | . . . . 21 Kills . | . . . . . Allies Corrupted . | . . . . . Allies Melted . | . . . . . Intel | -11 -10 -10 -10 -9 ------- Run | Yrd Mat Min Exi Min Active Infowar (turns) 2355 | 28 1289 483 364 191 Terrain 603 | . . 48 364 191 Seismic 1752 | 28 1289 435 . . Robot Analysis Total 1 | . 1 . . . Derelict Logs Recovered 2 | . . 1 . 1 Drone Launches . | . . . . . Drone Recoveries . | . . . . . Exploration | -11 -10 -10 -10 -9 ------------- Run | Yrd Mat Min Exi Min Turns Passed 3023 | 101 1289 953 364 316 Spaces Moved 1533 | 56 675 455 227 120 Core 5 | 5 . . . . Treads 1528 | 51 675 455 227 120 Legs . | . . . . . Wheels . | . . . . . Hover . | . . . . . Flight . | . . . . . Fastest Speed 50 | 50 160 160 160 160 Average Speed 160 | 150 160 161 160 160 Slowest Speed 240 | 160 160 240 160 160 Overloaded Moves . | . . . . . Propulsion Burnouts . | . . . . . Robots Hopped . | . . . . . Potential Cave-ins . | . . . . . Cave-ins Triggered . | . . . . . Exploration Rate (%) 57 | 4 96 87 60 38 Regions Visited 4 Branch Regions 3 Pre-discovered Areas 1 | . . . . 1 Known Exits Taken . | . . . . . Unknown Exits Taken 4 | 1 1 1 1 . Scrap Searched 2 | . . 1 . 1 Spaces Dug 5 | . 5 . . . Terrain Destroyed 96 | . 5 9 . 82 Melee . | . . . . . Projectile 9 | . 5 4 . . AOE 87 | . . 5 . 82 Terrain Rammed . | . . . . . Walls Destroyed . | . . . . . Machines Disabled . | . . . . . Actions | -11 -10 -10 -10 -9 --------- Run | Yrd Mat Min Exi Min Total 1830 | 67 794 562 228 179 Wait 100 | 1 47 44 . 8 Move 1530 | 56 674 454 226 120 Hop . | . . . . . Pick Up 19 | 2 12 2 2 1 Fast Attach 8 | 7 1 . . . Attach 9 | . . 5 . 4 Detach . | . . . . . Swap 20 | . 7 8 . 5 Drop 6 | . 6 . . . Fire 136 | 1 46 48 . 41 Melee . | . . . . . Ram . | . . . . . Kick . | . . . . . Crush 2 | . 1 1 . . Escape Stasis . | . . . . . Rewire . | . . . . . Trap . | . . . . . Miscellaneous . | . . . . . Route ------- -11/Scrapyard -10/Materials (discovered 4 exits: [*Mat x3] / [*Min]) -10/Mines (discovered 3 exits: [*Mat x2] / *Exi) -10/Exiles -9/Mines History --------- Turn | Location | Event 3 | -11/Scrapyard | Discovered new exit (range 15) 102 | -11/Scrapyard | Entered Materials 261 | -10/Materials | Discovered new exit (range 11) 312 | -10/Materials | Build established: Mutant 611 | -10/Materials | Discovered new exit (range 11) 953 | -10/Materials | Discovered new exit (range 6) 1187 | -10/Materials | Discovered new exit (range 16) 1391 | -10/Materials | Entered Mines 1425 | -10/Mines | Discovered new exit (range 8) 1521 | -10/Mines | Met a Derelict bent on vengeance 1559 | -10/Mines | Discovered new exit (range 12) 1802 | -10/Mines | Excavation squad dispatched 1802 | -10/Mines | A large section of the Mines collapsed 2136 | -10/Mines | Core integrity fell below 50% 2199 | -10/Mines | Learned Materials terminal intel 2336 | -10/Mines | Deemed a non-threat by the Exiles lab entrance 2338 | -10/Mines | Discovered new exit (range 5) 2344 | -10/Mines | Entered Exiles 2384 | -10/Exiles | Met 8R-AWN 2407 | -10/Exiles | Met EX-HEX 2456 | -10/Exiles | Met EX-BIN 2474 | -10/Exiles | Aligned with FarCom system 2476 | -10/Exiles | Given EX-Vault access code 2516 | -10/Exiles | Opened EX-Vault 2527 | -10/Exiles | Found Cloak of Protection 2560 | -10/Exiles | Warned to stay clear of 0b10 Research branches 2608 | -10/Exiles | Met EX-DEC 2687 | -10/Exiles | Discovered new exit (range 14) 2708 | -10/Exiles | Left Exiles lab with Cloak of Protection 2708 | -10/Exiles | Entered Mines 2715 | -9/Mines | Received a Rocket Launcher from a helpful Derelict 2790 | -9/Mines | Assembled infested the area 2795 | -9/Mines | Assisted by a Guerilla fighting off Assembled 2900 | -9/Mines | System corruption reached 10% 2902 | -9/Mines | Core integrity fell below 20% 2930 | -9/Mines | Lost 3 parts (1p1u1w) 2970 | -9/Mines | Destroyed 10 combat bots 3024 | -9/Mines | Destroyed by as-75673 with Assembled Rifle Last Messages --------------- 02990_ Acquired 16 matter. 02991_ U-05 Engineer lays Concrete. 02994_ U-05 Engineer builds a Wall. 02995_ The unstable cave ceiling collapses. 02995_ U-05 Engineer lays Concrete. 02997_ Acquired 23 matter. 02998_ U-05 Engineer lays Concrete. 03005_ as-32473 sneak attacks. 03005_ U-05 Engineer destroyed. 03005_ U-05 Engineer lays Concrete. 03008_ as-32473 sneak attacks. 03009_ System corrupted: EM Shotgun failed to cycle. 03013_ Lgt. Treads destroyed. 03017_ The unstable cave ceiling collapses. 03022_ Lgt. Treads destroyed. 03023_ EM Shotgun destroyed. 03024_ System corrupted: FCS attempts to trigger Med. Laser. 03024_ System corrupted: Med. Laser misfires. Map ----- +----------------------------------------------------+ | ???????????????????????? ????????????????????????? | | ?????????????????????????????????????????????????? | | ??????????????????????#???????###????????????????? | | ????????????????????????????### #??????????#####? | | ???????????????????????????## ?????????## #?? | | ?????????????????????????### ###???#?## #?? | | ?????????????????????????## ##????## ##? | | ?????????????????????#??## ###?## ## | | ????????????????????????# #### # | | ??????????????????????### ## | | ?????????????????? ? # ## | | ???????????????## # ## ## | | ???????????????# # #### # ###### | | ??????????????# # ## ## ##????### | | ??????????????# ## # #### % #???????? | | ??????????????# # ### #??##???? | | ?????????????## a ### ### #???????? | | ?????????????# ## ## % #?## ##??????#? | | ?????????????? =!* ##%%##?## #?#??????# | | ???????????????? !%= # # %##?## ##???????? | | ??????????????????# # !* ## # ##### #??????##? | | ???????????????????### %= ### #?#??????? | | ???????????????????# = ##%%####### ???????? | | ???????????????????# ###??? ???????? | | ???????????????????## a|! #?????????#?? | | ??????????????????#?## @ = ??????? | | ???????????????????#?# !## ## #????? | | ?????????????????????###* ########## ????? | | ???????????????????????#*[##???#????# ????? | | ???????????????????????# %##?????????# ???? | | ???????????????????????# #?????????#?# *%=????? | | ???????????????????????# %#????????????# ???? | | ???????????????????????# #????????????? " ????? | | ???????????????????????# ?????????????? ????? | | ???????????????????????# ??????????????? ??????? | | ???????????????????????### ??????????????????????? | | ?????????????????????????? ??????????????????????? | | ?????????????????????????? ?????????????????????? | | ?????????????????????????? ?????????????????????? | | ?????????????????????????? ??#??????????????????? | | ??????????????????????????#??????????????????????? | | ?????????????????????????????????????????????????? | | ?????????????????????????????????????????????????? | | | | | | | | | | | | | | | +----------------------------------------------------+ Best States ------------- Heat Dissipation 39 Energy Generation 14 Energy Capacity 250 Matter Stores 300 Matter Capacity 300 Sight Range 16 Terrain Scan Range 16 Terrain Scan Density 10 Armor Coverage 150 Evasion (%) 40 Recoil Reduction 2 Item Schematics ----------------- None Robot Schematics ------------------ None Fabricated ------------ Nothing Repaired ---------- Nothing Studied --------- None Alien Tech Used ----------------- None Achievements -------------- None Challenges ------------ None Game ------ Seed DecoyBombWarhead Manual? 0 Play Time 00:28:32 Cumulative 123.8 hours Start 2026.09.09 @ 09:40:46 End 2026.09.09 @ 10:08:05 Sessions 1 Manual Loads 0 Difficulty Rogue Special Mode None Game No. 62 Rogue 62 Adventurer 0 Explorer 0 Win Type - Total 1 Types 1/0/0/0/0/0/0/0/0/0 Lore% 25 Gallery% 40 Achievement% 25 Wizard Run 0 Options --------- Layout 1 ASCII 0 Keyboard 0 Movement Numpad Keybinds 0 Fullscreen 1 Font 24/Smallcaps Map View 50x35 Zoom Use 0% Tactical HUD 1 Map Filters NONE Filters NONE Steam 1 RUN: 29e40fe6-af9f-4f59-b3da-a5fd0c5e15aa